fUST/lending_fUST_20250206
["ID","MTS","AMOUNT","RATE_DAILY","PERIOD"]
[351813104,1738797066837,-787.1,0.00014246,2]
[351813105,1738797066847,-500.0,0.00014246,2]
[351813106,1738797066856,-1774.03,0.00014246,2]
[351813107,1738797066866,-2536.09,0.00014246,2]
[351813108,1738797066876,-1057.55,0.00014246,2]
[351813109,1738797066886,-3049.9,0.00014246,2]
[351813110,1738797066896,-664.27,0.00014246,2]
[351813111,1738797066906,-921.28,0.00014246,2]
[351813112,1738797066916,-151.0,0.00014246,2]
[351813113,1738797066926,-7093.78,0.00014246,2]
[351813114,1738797066942,-151.0,0.00014246,2]
[351813115,1738797066952,-256.213866,0.00014246,2]
[351813116,1738797066961,-512.7187502,0.00014246,2]
[351813117,1738797066972,-511.37,0.00014246,2]
[351813118,1738797066981,-641.5,0.00014246,2]
[351813119,1738797066996,-500.0,0.00014246,2]
[351813120,1738797067005,-772.62,0.00014246,2]
[351813121,1738797067016,-906.6,0.00014246,2]
[351813122,1738797067026,-500.0,0.00014246,2]
[351813123,1738797067036,-500.0,0.00014246,2]
[351813124,1738797067045,-3684.94,0.00014246,2]
[351813125,1738797067055,-500.0,0.00014246,2]
[351813126,1738797067065,-465.17126733,0.00014246,2]
[351813127,1738797067076,-2861.19,0.00014246,2]
[351813128,1738797067085,-620.51,0.00014246,2]
[351813129,1738797067096,-1232.53,0.00014246,2]
[351813130,1738797067106,-2745.33,0.00014246,2]
[351813131,1738797067117,-500.0,0.00014246,2]
[351813132,1738797067308,-500.0,0.00014246,2]
[351813133,1738797067319,-500.0,0.00014246,2]
[351813134,1738797067329,-500.0,0.00014246,2]
[351813135,1738797067340,-683.38,0.00014246,2]
[351813136,1738797067350,-500.0,0.00014246,2]
[351813137,1738797067361,-500.0,0.00014246,2]
[351813138,1738797067371,-500.0,0.00014246,2]
[351813139,1738797067381,-500.0,0.00014246,2]
[351813140,1738797067396,-2688.89,0.00014246,2]
[351813141,1738797067406,-500.0,0.00014246,2]
[351813142,1738797067416,-500.0,0.00014246,2]
[351813143,1738797067426,-500.0,0.00014246,2]
[351813144,1738797067440,-1111.21,0.00014246,2]
[351813145,1738797067451,-151.0,0.00014246,2]
[351813146,1738797067460,-151.0,0.00014246,2]
[351813147,1738797067470,-3923.32,0.00014246,2]
[351813148,1738797067480,-500.0,0.00014246,2]
[351813149,1738797067489,-596.85,0.00014246,2]
[351813150,1738797067499,-1235.75,0.00014246,2]
[351813151,1738797067508,-500.0,0.00014246,2]
[351813152,1738797067518,-500.0,0.00014246,2]
[351813153,1738797067528,-500.0,0.00014246,2]
[351813154,1738797067537,-500.0,0.00014246,2]
[351813155,1738797067547,-686.12,0.00014246,2]
[351813156,1738797067556,-500.0,0.00014246,2]
[351813157,1738797067565,-908.43,0.00014246,2]
[351813158,1738797067575,-500.0,0.00014246,2]
[351813159,1738797067589,-452.60029255,0.00014246,2]
[351813160,1738797067599,-500.0,0.00014246,2]
[351813161,1738797067608,-500.0,0.00014246,2]
[351813162,1738797067618,-615.77,0.00014246,2]
[351813163,1738797067628,-918.23,0.00014246,2]
[351813164,1738797067641,-522.2,0.00014246,2]
[351813165,1738797067651,-500.0,0.00014246,2]
[351813166,1738797067661,-500.0,0.00014246,2]
[351813167,1738797067671,-500.0,0.00014246,2]
[351813168,1738797067680,-610.02,0.00014246,2]
[351813169,1738797067693,-500.35767149,0.00014273,2]
[351813170,1738797067702,-273.92795831,0.00014273,2]
[351813171,1738797067712,-500.0,0.00014273,2]
[351813172,1738797067722,-1159.39,0.00014383,2]
[351813173,1738797067731,-836.64,0.00014383,2]
[351813174,1738797067741,-557.92,0.00014383,2]
[351813175,1738797067750,-500.0,0.00014383,2]
[351813176,1738797067759,-500.0,0.00014383,2]
[351813177,1738797067769,-599.8991434,0.00014383,2]
[351813178,1738797067778,-949.31,0.00014383,2]
[351813179,1738797067788,-500.0,0.00014383,2]
[351813180,1738797067797,-542.68,0.00014383,2]
[351813181,1738797067807,-520.47294432,0.00014383,2]
[351813182,1738797067816,-1000.0,0.00014383,2]
[351813183,1738797067826,-766.31,0.00014383,2]
[351813184,1738797067835,-187.99308882,0.00014383,2]
[351813185,1738797067844,-572.87,0.00014383,2]
[351813186,1738797067854,-639.81,0.00014383,2]
[351813187,1738797067863,-500.0,0.00014383,2]
[351813188,1738797067872,-1322.28,0.00014383,2]
[351813189,1738797067883,-500.0,0.00014383,2]
[351813190,1738797067892,-500.0,0.00014383,2]
[351813191,1738797067902,-500.0,0.00014383,2]
[351813192,1738797067911,-188.0,0.00014383,2]
[351813193,1738797067920,-500.0,0.00014383,2]
[351813194,1738797067929,-500.0,0.00014383,2]
[351813195,1738797067943,-931.6,0.00014383,2]
[351813196,1738797067953,-500.0,0.00014383,2]
[351813197,1738797067962,-493.96247745,0.00014383,2]
[351813198,1738797067971,-500.0,0.00014383,2]
[351813199,1738797067981,-500.0,0.00014383,2]
[351813200,1738797067990,-500.0,0.00014383,2]
[351813201,1738797068000,-500.0,0.00014383,2]
[351813202,1738797068009,-524.25,0.00014383,2]
[351813203,1738797068018,-820.76,0.00014383,2]
[351813204,1738797068028,-500.0,0.00014383,2]
[351813205,1738797068037,-500.0,0.00014383,2]
[351813206,1738797068047,-500.0,0.00014383,2]
[351813207,1738797068057,-615.48,0.00014383,2]
[351813208,1738797068067,-500.0,0.00014383,2]
[351813209,1738797068077,-1392.54,0.00014383,2]
[351813210,1738797068086,-640.53,0.00014383,2]
[351813211,1738797068096,-582.95,0.00014383,2]
[351813212,1738797068106,-1111.71,0.00014383,2]
[351813213,1738797068115,-536.56,0.00014383,2]
[351813214,1738797068125,-187.464311,0.00014383,2]
[351813215,1738797068135,-500.0,0.00014383,2]
[351813216,1738797068144,-676.22,0.00014383,2]
[351813217,1738797068154,-151.0,0.00014383,2]
[351813218,1738797068163,-151.0,0.00014383,2]
[351813219,1738797068173,-516.77,0.00014383,2]
[351813220,1738797068183,-500.0,0.00014383,2]
[351813221,1738797068196,-500.0,0.00014383,2]
[351813222,1738797068206,-500.0,0.00014383,2]
[351813223,1738797068216,-754.18,0.00014383,2]
[351813224,1738797068225,-817.6,0.00014383,2]
[351813225,1738797068235,-500.0,0.00014383,2]
[351813226,1738797068244,-500.0,0.00014383,2]
[351813227,1738797068254,-561.21,0.00014383,2]
[351813228,1738797068263,-580.45,0.00014383,2]
[351813229,1738797068272,-1524.51,0.00014383,2]
[351813230,1738797068281,-500.0,0.00014383,2]
[351813231,1738797068291,-324.18967396,0.00014383,2]
[351813232,1738797068300,-500.0,0.00014383,2]
[351813233,1738797068311,-500.0,0.00014383,2]
[351813234,1738797068329,-500.0,0.00014383,2]
[351813235,1738797068342,-695.55,0.00014383,2]
[351813236,1738797068353,-928.45,0.00014383,2]
[351813237,1738797068363,-1994.48,0.00014383,2]
[351813238,1738797068373,-500.0,0.00014383,2]
[351813239,1738797068383,-500.0,0.00014383,2]
[351813240,1738797068394,-500.0,0.00014383,2]
[351813241,1738797068404,-2114.21,0.00014383,2]
[351813242,1738797068414,-500.0,0.00014383,2]
[351813243,1738797068424,-500.0,0.00014383,2]
[351813244,1738797068439,-602.59,0.00014383,2]
[351813245,1738797068450,-500.0,0.00014383,2]
[351813246,1738797068461,-508.14,0.00014383,2]
[351813247,1738797068471,-625.28,0.00014383,2]
[351813248,1738797068482,-656.55,0.00014383,2]
[351813249,1738797068493,-1718.69,0.00014383,2]
[351813250,1738797068504,-951.29,0.00014383,2]
[351813251,1738797068515,-889.74,0.00014383,2]
[351813252,1738797068526,-536.44656176,0.00014383,2]
[351813253,1738797068536,-500.0,0.00014383,2]
[351813254,1738797068546,-500.0,0.00014383,2]
[351813255,1738797068557,-500.0,0.00014383,2]
[351813256,1738797068568,-500.0,0.00014383,2]
[351813257,1738797068579,-1299.34,0.00014383,2]
[351813258,1738797068589,-500.0,0.00014383,2]
[351813259,1738797068601,-500.0,0.00014383,2]
[351813260,1738797068611,-1226.32,0.00014383,2]
[351813261,1738797068621,-821.62,0.00014383,2]
[351813262,1738797068631,-151.0,0.00014383,2]
[351813263,1738797068642,-151.0,0.00014383,2]
[351813264,1738797068653,-500.0,0.00014383,2]
[351813265,1738797068663,-500.0,0.00014383,2]
[351813266,1738797068675,-1364.15,0.00014383,2]
[351813267,1738797068687,-1083.86,0.00014383,2]
[351813268,1738797068696,-500.0,0.00014383,2]
[351813269,1738797068706,-794.72,0.00014383,2]
[351813270,1738797068716,-500.0,0.00014383,2]
[351813271,1738797068726,-500.0,0.00014383,2]
[351813272,1738797068736,-1137.98,0.00014383,2]
[351813273,1738797068747,-277.41643159,0.00014383,2]
[351813274,1738797068757,-938.54,0.00014383,2]
[351813275,1738797068768,-658.71,0.00014383,2]
[351813276,1738797068778,-251.54179,0.00014383,2]
[351813277,1738797068787,-531.19,0.00014383,2]
[351813278,1738797068797,-500.0,0.00014383,2]
[351813279,1738797068807,-3268.13,0.00014383,2]
[351813280,1738797068817,-500.0,0.00014383,2]
[351813281,1738797068826,-500.0,0.00014383,2]
[351813282,1738797068836,-500.0,0.00014383,2]
[351813283,1738797068846,-2109.0,0.00014383,2]
[351813284,1738797068856,-500.0,0.00014383,2]
[351813285,1738797068866,-620.45945993,0.00014383,2]
[351813286,1738797068875,-500.0,0.00014383,2]
[351813287,1738797068885,-500.0,0.00014383,2]
[351813288,1738797068895,-547.6,0.00014383,2]
[351813289,1738797068904,-3358.87,0.00014383,2]
[351813290,1738797068915,-500.0,0.00014383,2]
[351813291,1738797068924,-500.0,0.00014383,2]
[351813292,1738797068936,-500.0,0.00014383,2]
[351813293,1738797068945,-799.75,0.00014383,2]
[351813294,1738797068956,-555.67,0.00014383,2]
[351813295,1738797068965,-384.39215673,0.00014383,2]
[351813296,1738797068975,-937.41,0.00014383,2]
[351813297,1738797068985,-500.0,0.00014383,2]
[351813298,1738797068995,-687.13,0.00014383,2]
[351813299,1738797069005,-1781.67,0.00014383,2]
[351813300,1738797069015,-500.0,0.00014383,2]
[351813301,1738797069025,-500.0,0.00014383,2]
[351813302,1738797069035,-1561.1,0.00014383,2]
[351813303,1738797069046,-317.7683323,0.00014383,2]
[351813304,1738797069055,-500.0,0.00014383,2]
[351813305,1738797069065,-500.0,0.00014383,2]
[351813306,1738797069075,-851.129354,0.00014383,2]
[351813307,1738797069084,-500.0,0.00014383,2]
[351813308,1738797069094,-851.129344,0.00014383,2]
[351813309,1738797069103,-500.0,0.00014383,2]
[351813310,1738797069112,-500.0,0.00014383,2]
[351813311,1738797069122,-1311.27,0.00014383,2]
[351813312,1738797069132,-500.0,0.00014383,2]
[351813313,1738797069142,-500.0,0.00014383,2]
[351813314,1738797069151,-500.0,0.00014383,2]
[351813315,1738797069162,-500.0,0.00014383,2]
[351813316,1738797069172,-1382.54,0.00014383,2]
[351813317,1738797069182,-698.05,0.00014383,2]
[351813318,1738797069195,-500.0,0.00014383,2]
[351813319,1738797069205,-732.1,0.00014383,2]
[351813320,1738797069215,-500.0,0.00014383,2]
[351813321,1738797069224,-500.0,0.00014383,2]
[351813322,1738797069235,-500.0,0.00014383,2]
[351813323,1738797069245,-500.0,0.00014383,2]
[351813324,1738797069256,-500.0,0.00014383,2]
[351813325,1738797069265,-912.24,0.00014383,2]
[351813326,1738797069275,-770.08,0.00014383,2]
[351813327,1738797069284,-500.0,0.00014383,2]
[351813328,1738797069295,-1172.19,0.00014383,2]
[351813329,1738797069304,-500.0,0.00014383,2]
[351813330,1738797069314,-500.0,0.00014383,2]
[351813331,1738797069323,-671.39,0.00014383,2]
[351813332,1738797069333,-3998.17,0.00014383,2]
[351813333,1738797069343,-673.5,0.00014383,2]
[351813334,1738797069354,-914.46,0.00014383,2]
[351813335,1738797069364,-555.84,0.00014383,2]
[351813336,1738797069374,-500.0,0.00014383,2]
[351813337,1738797069383,-500.0,0.00014383,2]
[351813338,1738797069394,-2046.39,0.00014383,2]
[351813339,1738797069404,-836.22,0.00014383,2]
[351813340,1738797069415,-500.0,0.00014383,2]
[351813341,1738797069425,-500.0,0.00014383,2]
[351813342,1738797069437,-1677.9,0.00014383,2]
[351813343,1738797069447,-812.25,0.00014383,2]
[351813344,1738797069457,-720.5,0.00014383,2]
[351813345,1738797069467,-1103.25,0.00014383,2]
[351813346,1738797069476,-1767.95,0.00014383,2]
[351813347,1738797069486,-500.0,0.00014383,2]
[351813348,1738797069496,-612.16,0.00014383,2]
[351813349,1738797069505,-500.0,0.00014383,2]
[351813350,1738797069515,-500.0,0.00014383,2]
[351813351,1738797069524,-290.851257,0.00014383,2]
[351813352,1738797069533,-500.0,0.00014383,2]
[351813353,1738797069543,-522.16,0.00014383,2]
[351813354,1738797069552,-500.0,0.00014383,2]
[351813355,1738797069562,-661.44,0.00014383,2]
[351813356,1738797069572,-424.747012,0.00014383,2]
[351813357,1738797069583,-424.74701465,0.00014383,2]
[351813358,1738797069593,-512.04760966,0.00014383,2]
[351813359,1738797069602,-500.0,0.00014383,2]
[351813360,1738797069612,-500.0,0.00014383,2]
[351813361,1738797069621,-500.0,0.00014383,2]
[351813362,1738797069632,-403.25601385,0.00014383,2]
[351813363,1738797069641,-926.56,0.00014383,2]
[351813364,1738797069650,-532.84,0.00014383,2]
[351813365,1738797069661,-1162.52,0.00014383,2]
[351813366,1738797069671,-500.0,0.00014383,2]
[351813367,1738797069680,-673.84825332,0.00014383,2]
[351813368,1738797069933,-215.63174668,0.00014383,2]
[351813369,1738797069946,-166.29643785,0.00014383,2]
[351813370,1738797069959,-339.09356215,0.00014383,2]
[351813371,1738797069968,-500.0,0.00014383,2]
[351813372,1738797069977,-707.61,0.00014383,2]
[351813373,1738797069987,-500.0,0.00014383,2]
[351813374,1738797069996,-902.96,0.00014383,2]
[351813375,1738797070006,-3202.02,0.00014383,2]
[351813376,1738797070016,-708.73,0.00014383,2]
[351813377,1738797070025,-500.0,0.00014383,2]
[351813378,1738797070035,-500.0,0.00014383,2]
[351813379,1738797070045,-1346.35,0.00014383,2]
[351813380,1738797070054,-1043.67,0.00014383,2]
[351813381,1738797070064,-2916.69,0.00014383,2]
[351813382,1738797070073,-685.84,0.00014383,2]
[351813383,1738797070082,-500.0,0.00014383,2]
[351813384,1738797070092,-2625.97,0.00014383,2]
[351813385,1738797070102,-500.0,0.00014383,2]
[351813386,1738797070112,-6073.71,0.00014383,2]
[351813387,1738797070122,-2814.79,0.00014383,2]
[351813388,1738797070132,-500.0,0.00014383,2]
[351813389,1738797070141,-1619.65,0.00014383,2]
[351813390,1738797070151,-540.23098084,0.00014383,2]
[351813391,1738797070161,-500.0,0.00014383,2]
[351813392,1738797070171,-831.28036973,0.00014383,2]
[351813393,1738797070183,-1482.38963027,0.00014383,2]
[351813394,1738797070195,-500.0,0.00014383,2]
[351813395,1738797070205,-1397.33228489,0.00014383,2]
[351813396,1738797091318,160.0,0.00017448,120]
[351813397,1738797150755,160.0,0.00017822,120]
[351813398,1738797211292,160.0,0.00019885,120]
[351813399,1738797222682,1007.13,0.00020424,120]
[351813400,1738797270744,160.0,0.00020014,120]
[351813401,1738797329279,20000.0,0.00020423,120]
[351813402,1738797330795,160.0,0.00019812,120]
[351813403,1738797343267,1679.0,0.00020423,120]
[351813404,1738797372052,0.19038688,0.00020385,120]
[351813405,1738797372080,2500.0,0.00020385,120]
[351813406,1738797439122,10000.0,0.00019199,120]
[351813407,1738797452130,11975.0,0.00019199,120]
[351813408,1738797570744,160.0,0.00018714,120]
[351813409,1738797586844,65967.72541677,0.0001402,28]
[351813410,1738797690747,160.0,0.00017464,120]
[351813415,1738797917325,436.65,0.00019199,120]
[351813416,1738797930929,160.0,0.00017527,120]
[351813418,1738798105365,306.32178731,7e-05,120]
[351813419,1738798110713,160.0,0.00017636,120]
[351813428,1738798230743,160.0,0.00017538,120]
[351813456,1738798232015,-683.0,0.00012,2]
[351813457,1738798232025,-300.0,0.00012791,2]
[351813458,1738798232034,-21524.9075606,0.00012792,2]
[351813459,1738798232044,-268.445,0.00013424,2]
[351813460,1738798232057,-644.08789921,0.00013598,2]
[351813461,1738798232066,-940.0,0.000136,2]
[351813462,1738798232076,-152.0,0.00013677,2]
[351813463,1738798232085,-13671.922379,0.0001368,2]
[351813464,1738798232095,-548.32510142,0.00013697,2]
[351813465,1738798232104,-500.0,0.00013697,2]
[351813466,1738798232113,-500.0,0.00013697,2]
[351813467,1738798232123,-500.0,0.00013697,2]
[351813468,1738798232133,-500.0,0.00013697,2]
[351813469,1738798232143,-500.0,0.00013697,2]
[351813470,1738798232153,-500.0,0.00013697,2]
[351813471,1738798232163,-500.0,0.00013697,2]
[351813472,1738798232172,-500.0,0.00013697,2]
[351813473,1738798232181,-500.0,0.00013697,2]
[351813474,1738798232190,-309.47985906,0.00013697,2]
[351813475,1738798232200,-500.0,0.00013697,2]
[351813476,1738798232209,-500.0,0.00013697,2]
[351813477,1738798232220,-500.0,0.00013697,2]
[351813478,1738798232229,-500.0,0.00013697,2]
[351813479,1738798232238,-500.0,0.00013697,2]
[351813480,1738798232248,-500.0,0.00013697,2]
[351813481,1738798232257,-500.0,0.00013697,2]
[351813482,1738798232266,-394.7646007,0.00013697,2]
[351813483,1738798232275,-500.0,0.00013698,2]
[351813484,1738798232285,-500.0,0.00013698,2]
[351813485,1738798232294,-614.57281206,0.00013698,2]
[351813486,1738798232303,-500.0,0.00013698,2]
[351813487,1738798232313,-500.0,0.00013698,2]
[351813488,1738798232322,-500.0,0.00013698,2]
[351813489,1738798232331,-500.0,0.00013698,2]
[351813490,1738798232340,-500.0,0.00013698,2]
[351813491,1738798232350,-500.0,0.00013698,2]
[351813492,1738798232360,-500.0,0.00013698,2]
[351813493,1738798232369,-514.05433313,0.00013698,2]
[351813494,1738798232378,-500.0,0.00013698,2]
[351813495,1738798232387,-500.0,0.00013698,2]
[351813496,1738798232396,-500.0,0.00013698,2]
[351813497,1738798232405,-604.31766378,0.00013698,2]
[351813498,1738798232414,-500.0,0.00013698,2]
[351813499,1738798232424,-500.0,0.00013698,2]
[351813500,1738798232433,-500.0,0.00013698,2]
[351813501,1738798232443,-500.0,0.00013698,2]
[351813502,1738798232452,-500.0,0.00013698,2]
[351813503,1738798232462,-500.0,0.00013698,2]
[351813504,1738798232473,-500.0,0.00013698,2]
[351813505,1738798232483,-500.0,0.00013698,2]
[351813506,1738798232492,-500.0,0.00013698,2]
[351813507,1738798232502,-500.0,0.00013698,2]
[351813508,1738798232511,-500.0,0.00013698,2]
[351813509,1738798232521,-309.08559348,0.00013698,2]
[351813510,1738798232530,-500.0,0.00013698,2]
[351813511,1738798232539,-500.0,0.00013698,2]
[351813512,1738798232549,-500.0,0.00013698,2]
[351813513,1738798232558,-500.0,0.00013698,2]
[351813514,1738798232568,-500.0,0.00013698,2]
[351813515,1738798232577,-500.0,0.00013698,2]
[351813516,1738798232587,-500.0,0.00013698,2]
[351813517,1738798232597,-500.0,0.00013698,2]
[351813518,1738798232606,-500.0,0.00013698,2]
[351813519,1738798232616,-500.0,0.00013698,2]
[351813520,1738798232625,-500.0,0.00013698,2]
[351813521,1738798232634,-500.0,0.00013698,2]
[351813522,1738798232646,-500.0,0.00013698,2]
[351813523,1738798232656,-535.0235395,0.00013698,2]
[351813524,1738798232665,-500.0,0.00013698,2]
[351813525,1738798232675,-500.0,0.00013698,2]
[351813526,1738798232684,-500.0,0.00013698,2]
[351813527,1738798232694,-500.0,0.00013698,2]
[351813528,1738798232703,-500.0,0.00013698,2]
[351813529,1738798232712,-500.0,0.00013698,2]
[351813530,1738798232721,-500.0,0.00013698,2]
[351813531,1738798232731,-515.43985974,0.00013698,2]
[351813532,1738798232740,-518.85485191,0.00013698,2]
[351813533,1738798232750,-500.0,0.00013698,2]
[351813534,1738798232759,-500.0,0.00013698,2]
[351813535,1738798232769,-500.0,0.00013698,2]
[351813536,1738798232778,-505.44800151,0.00013698,2]
[351813537,1738798232787,-292.24844763,0.00013698,2]
[351813538,1738798232796,-500.0,0.00013698,2]
[351813539,1738798232806,-500.0,0.00013698,2]
[351813540,1738798232815,-500.0,0.00013698,2]
[351813541,1738798232824,-500.0,0.00013698,2]
[351813542,1738798232834,-500.0,0.00013698,2]
[351813543,1738798232843,-500.0,0.00013698,2]
[351813544,1738798232853,-500.0,0.00013698,2]
[351813545,1738798232863,-500.0,0.00013698,2]
[351813546,1738798232873,-500.0,0.00013698,2]
[351813547,1738798232882,-500.0,0.00013698,2]
[351813548,1738798232892,-500.0,0.00013698,2]
[351813549,1738798232903,-500.0,0.00013698,2]
[351813550,1738798232912,-500.0,0.00013698,2]
[351813551,1738798232922,-500.0,0.00013698,2]
[351813552,1738798232931,-500.0,0.00013698,2]
[351813553,1738798232940,-500.0,0.00013698,2]
[351813554,1738798232950,-500.0,0.00013698,2]
[351813555,1738798232959,-431.36781497,0.00013698,2]
[351813556,1738798232972,-500.0,0.00013698,2]
[351813557,1738798232983,-500.0,0.00013698,2]
[351813558,1738798232992,-500.0,0.00013698,2]
[351813559,1738798233001,-500.0,0.00013698,2]
[351813560,1738798233014,-500.0,0.00013698,2]
[351813561,1738798233024,-500.0,0.00013698,2]
[351813562,1738798233033,-500.0,0.00013698,2]
[351813563,1738798233043,-500.0,0.00013698,2]
[351813564,1738798233055,-500.0,0.00013698,2]
[351813565,1738798233065,-500.77340113,0.00013698,2]
[351813566,1738798233075,-500.0,0.00013698,2]
[351813567,1738798233084,-500.0,0.00013698,2]
[351813568,1738798233094,-500.0,0.00013698,2]
[351813569,1738798233104,-741.45,0.00013698,2]
[351813570,1738798233113,-500.0,0.00013698,2]
[351813571,1738798233123,-500.0,0.00013698,2]
[351813572,1738798233132,-500.0,0.00013698,2]
[351813573,1738798233142,-500.0,0.00013698,2]
[351813574,1738798233154,-500.0,0.00013698,2]
[351813575,1738798233164,-500.0,0.00013698,2]
[351813576,1738798233173,-500.0,0.00013698,2]
[351813577,1738798233183,-500.0,0.00013698,2]
[351813578,1738798233192,-500.0,0.00013698,2]
[351813579,1738798233202,-500.0,0.00013698,2]
[351813580,1738798233212,-500.0,0.00013698,2]
[351813581,1738798233222,-361.19426287,0.00013698,2]
[351813582,1738798233232,-500.0,0.00013698,2]
[351813583,1738798233242,-500.0,0.00013698,2]
[351813584,1738798233252,-500.0,0.00013698,2]
[351813585,1738798233261,-500.0,0.00013698,2]
[351813586,1738798233271,-500.0,0.00013698,2]
[351813587,1738798233281,-500.0,0.00013698,2]
[351813588,1738798233291,-3.2556154,0.00013698,2]
[351813618,1738798237796,-496.7443846,0.00013698,2]
[351813620,1738798237806,-500.0,0.00013698,2]
[351813622,1738798237815,-500.0,0.00013698,2]
[351813624,1738798237825,-503.09,0.00013698,2]
[351813626,1738798237834,-505.56235276,0.00013698,2]
[351813628,1738798237843,-438.22386094,0.00013698,2]
[351813630,1738798237853,-500.0,0.00013698,2]
[351813632,1738798237862,-500.0,0.00013698,2]
[351813634,1738798237872,-500.0,0.00013698,2]
[351813636,1738798237881,-1042.77,0.00013698,2]
[351813637,1738798237892,-500.0,0.00013698,2]
[351813639,1738798237901,-500.0,0.00013698,2]
[351813641,1738798237911,-500.0,0.00013698,2]
[351813643,1738798237920,-500.0,0.00013698,2]
[351813645,1738798237929,-500.0,0.00013698,2]
[351813647,1738798237939,-500.0,0.00013698,2]
[351813649,1738798237947,-500.0,0.00013698,2]
[351813650,1738798237956,-500.0,0.00013698,2]
[351813652,1738798237966,-500.0,0.00013698,2]
[351813654,1738798237978,-782.11,0.00013698,2]
[351813656,1738798237987,-500.0,0.00013698,2]
[351813658,1738798237997,-500.0,0.00013698,2]
[351813660,1738798238006,-500.0,0.00013698,2]
[351813661,1738798238015,-500.0,0.00013698,2]
[351813663,1738798238026,-507.95164527,0.00013698,2]
[351813665,1738798238035,-500.0,0.00013698,2]
[351813667,1738798238045,-500.0,0.00013698,2]
[351813669,1738798238054,-500.0,0.00013698,2]
[351813671,1738798238064,-500.0,0.00013698,2]
[351813673,1738798238073,-500.0,0.00013698,2]
[351813675,1738798238082,-571.8211526,0.00013698,2]
[351813676,1738798238091,-500.0,0.00013698,2]
[351813678,1738798238100,-500.0,0.00013698,2]
[351813680,1738798238110,-500.0,0.00013698,2]
[351813682,1738798238119,-500.0,0.00013698,2]
[351813684,1738798238129,-500.0,0.00013698,2]
[351813686,1738798238140,-500.0,0.00013698,2]
[351813688,1738798238149,-321.82871719,0.00013698,2]
[351813690,1738798238160,-500.0,0.00013698,2]
[351813692,1738798238170,-500.0,0.00013698,2]
[351813694,1738798238179,-500.0,0.00013698,2]
[351813695,1738798238188,-500.0,0.00013698,2]
[351813697,1738798238198,-211.74345682,0.00013698,2]
[351813699,1738798238207,-503.79388325,0.00013698,2]
[351813701,1738798238216,-500.0,0.00013698,2]
[351813703,1738798238226,-500.0,0.00013698,2]
[351813705,1738798238236,-500.0,0.00013698,2]
[351813707,1738798238245,-500.0,0.00013698,2]
[351813708,1738798238254,-500.0,0.00013698,2]
[351813728,1738798238450,-500.0,0.00013698,2]
[351813730,1738798238460,-500.0,0.00013698,2]
[351813731,1738798238470,-500.0,0.00013698,2]
[351813733,1738798238479,-500.0,0.00013698,2]
[351813735,1738798238489,-500.0,0.00013698,2]
[351813737,1738798238498,-500.0,0.00013698,2]